[Event "XI Continental-ch America 2016"]
[Site "San Salvador"]
[Date "2016.06.05"]
[Round "11"]
[White "Gonzalez Vidal, Yuri"]
[Black "Barrientos, Sergio E"]
[Result "1/2-1/2"]
[ECO "A17"]
[WhiteElo "2555"]
[BlackElo "2460"]
[Annotator "ChessBase"]
[PlyCount "93"]
[EventDate "2016.??.??"]
[EventCountry "ESA"]
[Source "ChessBase"]
[TimeControl "40/5400+30:1800+30"]

1. Nf3 {[%emt 0:00:00]} Nf6 {[%emt 0:01:20]} 2. c4 {[%emt 0:00:00]} e6 {
[%emt 0:00:05]} 3. Nc3 {[%emt 0:01:07]} Bb4 {[%emt 0:02:38]} 4. Qc2 {[%emt 0:
00:30]} c5 {[%emt 0:02:06]} 5. a3 {[%emt 0:00:35]} Ba5 {[%emt 0:00:25]} 6. g4 {
[%emt 0:02:00]} d5 {[%emt 0:11:58]} 7. g5 {[%emt 0:02:44]} Nh5 {[%emt 0:00:22]}
8. cxd5 {[%emt 0:02:55]} O-O {[%emt 0:03:06]} 9. d6 {[%emt 0:14:11]} Bxc3 {
[%emt 0:03:24]} 10. dxc3 {[%emt 0:06:23]} Qxd6 {[%emt 0:01:53]} 11. Be3 {
[%emt 0:02:32]} b6 {[%emt 0:06:41]} 12. Nd2 {[%emt 0:12:45]} Bb7 {[%emt 0:06:
31]} 13. Ne4 {[%emt 0:00:22]} Qe5 {[%emt 0:02:05]} 14. Bg2 {[%emt 0:00:13]} Nc6
{[%emt 0:00:08]} 15. O-O {[%emt 0:03:56]} Ne7 {[%emt 0:16:29]} 16. Nf6+ {
[%emt 0:09:38]} Nxf6 {[%emt 0:05:28]} 17. gxf6 {[%emt 0:00:15]} Nd5 {[%emt 0:
00:07]} 18. Bc1 {[%emt 0:04:58]} Rab8 {[%emt 0:08:43]} 19. fxg7 {[%emt 0:00:51]
} Qxg7 {[%emt 0:00:04]} 20. e4 {[%emt 0:01:01]} Ne7 {[%emt 0:00:59]} 21. Kh1 {
[%emt 0:02:42]} Ng6 {[%emt 0:01:43]} 22. f3 {[%emt 0:05:23]} f5 {[%emt 0:01:42]
} 23. Be3 {[%emt 0:03:13]} Rf7 {[%emt 0:02:44]} 24. b4 {[%emt 0:01:37]} cxb4 {
[%emt 0:05:53]} 25. axb4 {[%emt 0:00:14]} Rc8 {[%emt 0:00:05]} 26. exf5 {
[%emt 0:07:18]} exf5 {[%emt 0:11:03]} 27. Rxa7 {[%emt 0:02:12]} Rxc3 {[%emt 0:
02:50]} 28. Qf2 {[%emt 0:01:06]} Rd3 {[%emt 0:00:38]} 29. Bxb6 {[%emt 0:07:16]}
Qc3 {[%emt 0:00:04]} 30. Qc5 {[%emt 0:01:29]} Qxc5 {[%emt 0:02:59]} 31. Bxc5 {
[%emt 0:04:08]} Nf4 {[%emt 0:00:31]} 32. Re1 {[%emt 0:00:54]} Nxg2 {[%emt 0:00:
38]} 33. Re8+ {[%emt 0:00:34]} Kg7 {[%emt 0:00:05]} 34. Kxg2 {[%emt 0:00:09]}
Bxf3+ {[%emt 0:00:29]} 35. Kf2 {[%emt 0:00:20]} Rxa7 {[%emt 0:00:34]} 36. Bxa7
{[%emt 0:00:05]} Be4 {[%emt 0:00:19]} 37. Bb8 {[%emt 0:02:08]} Kg6 {[%emt 0:00:
39]} 38. Rf8 {[%emt 0:00:34]} Rb3 {[%emt 0:00:48]} 39. Bd6 {[%emt 0:00:24]} Kg5
{[%emt 0:00:14]} 40. Be7+ {[%emt 0:00:32]} Kh5 {[%emt 0:00:46]} 41. Bd6 {
[%emt 0:05:49]} Rd3 {[%emt 0:07:42]} 42. Bc7 {[%emt 0:01:03]} Rb3 {[%emt 0:03:
01]} 43. Bd6 {[%emt 0:00:12]} Kh4 {[%emt 0:00:38]} 44. Ke2 {[%emt 0:05:09]} h5
{[%emt 0:05:16]} 45. Rg8 {[%emt 0:01:58]} Bf3+ {[%emt 0:03:39]} 46. Kd2 {
[%emt 0:01:09]} Be4 {[%emt 0:00:08]} 47. Ke2 {[%emt 0:02:37]} 1/2-1/2